bitfinex-derivatives/quotes_BNBF0:USTF0_20250221
["timestamp","ask_amount","ask_price","bid_price","bid_amount"]
[1740180762009,0.28307176,646.77,645.68,1.09975096]
[1740180762217,0.30921937,646.79,645.68,1.09975096]
[1740180762218,0.28307176,646.76,645.68,1.09975096]
[1740180762416,0.28307176,646.78,645.68,1.09975096]
[1740180762714,0.28307176,646.77,645.68,1.09975096]
[1740180762916,0.30921937,646.79,645.68,1.09975096]
[1740180763120,0.2830869,646.78,645.68,1.09975096]
[1740180763518,0.30921937,646.79,645.68,1.09975096]
[1740180763915,0.73,646.78,645.68,1.09975096]
[1740180765619,0.84460908,646.77,645.68,1.09975096]
[1740180766028,0.84460908,646.76,645.68,1.09975096]
[1740180766523,1.11421167,646.75,645.68,1.09975096]
[1740180766727,2.14354647,646.74,645.68,1.09975096]
[1740180766922,2.14354647,646.73,645.68,1.09975096]
[1740180767122,2.14354647,646.72,645.68,1.09975096]
[1740180767324,0.73,646.78,645.68,1.09975096]
[1740180767325,2.14354647,646.71,645.68,1.09975096]
[1740180767624,2.98815555,646.7,645.68,1.09975096]
[1740180767925,1.39733822,646.69,645.68,1.09975096]
[1740180768120,1.39733822,646.68,645.68,1.09975096]
[1740180768325,0.28312655,646.67,645.68,1.09975096]
[1740180768520,0.28312655,646.68,645.68,1.09975096]
[1740180768827,0.28312655,646.67,645.68,1.09975096]
[1740180769020,0.28312655,646.66,645.68,1.09975096]
[1740180769223,0.28312655,646.65,645.68,0.79]
[1740180769426,0.28312655,646.77,645.68,0.79]
[1740180769626,3.29729153,646.76,645.68,0.79]
[1740180769828,2.45266401,646.75,645.68,0.79]
[1740180770027,2.45266879,646.74,645.68,0.79]
[1740180770228,2.45267357,646.73,645.68,0.79]
[1740180770428,2.14342551,646.72,645.68,0.79]
[1740180770622,2.14342551,646.71,645.68,0.79]
[1740180770826,1.39728471,646.7,645.68,0.79]
[1740180771024,2.24191082,646.69,645.68,0.79]
[1740180771226,0.28312655,646.68,645.68,0.79]
[1740180771425,0.28312655,646.67,645.68,0.79]
[1740180771631,0.28312655,646.66,645.68,0.79]
[1740180771823,0.28312655,646.65,645.68,0.79]
[1740180772028,0.28312655,646.64,645.68,0.79]
[1740180772325,0.30924806,646.73,645.68,0.79]
[1740180772326,0.28312655,646.63,645.68,0.79]
[1740180772526,0.28312655,646.72,645.68,0.79]
[1740180772727,0.28312655,646.71,645.68,0.79]
[1740180773027,0.30924806,646.73,645.68,0.79]
[1740180773028,0.28312655,646.7,645.68,0.79]
[1740180773229,0.28312655,646.72,645.68,0.79]
[1740180773425,0.30924806,646.73,645.68,0.79]
[1740180773426,0.28312655,646.71,645.68,0.79]
[1740180773624,0.28312655,646.7,645.68,0.79]
[1740180773830,0.28312655,646.72,645.68,0.79]
[1740180774037,0.28312655,646.71,645.68,0.79]
[1740180774232,0.28312655,646.7,645.68,0.79]
[1740180774433,0.28312655,646.69,645.68,0.79]
[1740180774633,0.28312655,646.68,645.68,0.79]
[1740180774831,0.28312655,646.67,645.68,0.79]
[1740180775027,0.28312655,646.72,645.68,0.79]
[1740180775628,0.30924806,646.73,645.68,0.79]
[1740180776031,1.15624612,647.15,645.69,0.30974616]
[1740180776233,2.45238296,647.14,645.69,0.30974616]
[1740180776432,2.14333083,647.13,645.69,0.30974616]
[1740180776633,2.14333083,647.12,645.7,0.28442223]
[1740180776829,2.14333083,647.11,645.71,0.30973656]
[1740180777139,2.98792164,647.1,645.72,0.28442223]
[1740180777333,1.39719876,647.09,645.73,0.30972697]
[1740180777635,0.28298766,647.08,645.74,0.28442223]
[1740180777835,0.84459081,647.08,645.74,0.28442223]
[1740180778028,0.84459081,647.08,645.75,0.30971738]
[1740180778232,0.30905213,647.14,645.76,0.28442223]
[1740180778429,0.28292883,647.13,645.76,0.28442223]
[1740180778632,0.30905213,647.14,645.76,0.28442223]
[1740180780633,0.30905213,647.14,645.77,0.28435317]
[1740180780842,0.30905213,647.14,645.76,0.28435317]
[1740180781033,0.30905213,647.14,645.77,0.28435317]
[1740180781240,0.30905213,647.14,645.78,0.28435317]
[1740180784433,0.30905213,647.14,645.8,0.3096934]
[1740180784635,0.30905213,647.14,645.81,0.28435317]
[1740180785936,0.30905213,647.14,645.82,0.30968381]
[1740180786136,0.30905213,647.14,645.83,0.28435317]
[1740180787242,0.28289272,647.13,645.83,0.28435317]
[1740180787440,0.30905213,647.14,645.83,0.28435317]
[1740180787838,0.30905213,647.14,645.84,0.30967422]
[1740180788134,0.30905213,647.14,645.85,0.2843089]
[1740180788538,0.30905213,647.14,645.86,0.30966463]
[1740180788738,0.30905213,647.14,645.87,0.2843089]
[1740180788942,0.30905213,647.14,645.88,0.30965504]
[1740180789137,0.30905213,647.14,645.89,0.2843089]
[1740180789339,0.30905213,647.14,645.9,0.30964545]
[1740180789937,0.30905213,647.14,645.91,0.28431537]
[1740180790141,0.30905213,647.14,645.92,0.30963586]
[1740180798841,1.15624612,648.43,645.92,0.30963586]
[1740180799041,2.12880127,648.42,645.92,0.30963586]
[1740180799247,0.30849915,648.3,645.92,0.30963586]
[1740180799448,2.12880127,648.29,645.93,0.28430417]
[1740180799648,2.12880127,648.28,645.94,0.30962628]
[1740180799846,2.12880127,648.27,645.94,0.30962628]
[1740180800147,0.30856578,648.16,645.94,0.30962628]
[1740180800342,2.12880127,648.15,645.94,0.30962628]
[1740180800546,0.30862292,648.04,645.95,0.28430604]
[1740180800749,1.84593431,648.03,645.96,0.30961669]
[1740180800950,0.30867531,647.93,645.97,0.28430604]
[1740180801249,2.12863275,647.92,645.97,0.28430604]
[1740180801450,0.30867531,647.93,645.97,0.28430604]
[1740180801451,2.96655317,647.91,645.97,0.28430604]
[1740180801651,2.12863275,647.9,645.97,0.28430604]
[1740180801851,2.12863275,647.89,645.98,0.3096071]
[1740180802053,0.3087039,647.87,645.99,0.28430604]
[1740180802251,2.12863275,647.86,646.0,0.30959752]
[1740180802551,0.3087182,647.84,646.01,0.28430604]
[1740180802750,2.96655317,647.83,646.02,0.30958793]
[1740180802950,0.30873249,647.81,646.03,0.28430604]
[1740180803146,2.12863275,647.8,646.04,0.30957835]
[1740180803346,2.12863275,647.79,646.04,0.30957835]
[1740180803551,0.30875156,647.77,646.04,0.30957835]
[1740180803753,2.96655317,647.76,646.04,0.30957835]
[1740180803947,0.30876586,647.74,646.04,0.30957835]
[1740180804146,2.12863275,647.73,646.04,0.30957835]
[1740180804355,0.30878016,647.71,646.04,0.30957835]
[1740180804552,2.12863275,647.7,646.04,0.30957835]
[1740180804752,2.12863275,647.69,646.04,0.30957835]
[1740180805051,0.30878016,647.71,646.04,0.30957835]
[1740180811458,0.28275978,647.7,646.05,0.28419153]
[1740180811660,0.30878969,647.69,646.06,0.30956877]
[1740180811858,0.28275978,647.68,646.07,0.28419153]
[1740180812057,0.30879923,647.67,646.08,0.30955918]
[1740180812258,0.28275978,647.66,646.09,0.28419153]
[1740180812454,0.30880877,647.65,646.1,0.3095496]
[1740180812658,0.28275978,647.64,646.11,0.28419153]
[1740180812958,0.3088183,647.63,646.12,0.30954002]
[1740180813160,0.28275978,647.62,646.12,0.30954002]
[1740180813361,0.30882784,647.61,646.13,0.28421176]
[1740180813556,0.30882784,647.61,646.12,0.30954002]
[1740180813763,0.28277092,647.6,646.14,0.30953044]
[1740180814863,0.28277092,647.6,646.15,0.28420561]
[1740180815062,0.28277092,647.6,646.16,0.30952086]
[1740180815359,0.30883738,647.59,646.17,0.28423645]
[1740180815566,0.28277092,647.58,646.17,0.28423645]
[1740180815866,0.30884692,647.57,646.17,0.28423645]
[1740180816064,0.28277092,647.56,646.17,0.28423645]
[1740180816263,0.30885645,647.55,646.17,0.28423645]
[1740180816564,0.28277092,647.54,646.17,0.28423645]
[1740180816869,0.30886599,647.53,646.17,0.28423645]
[1740180817058,0.28277092,647.52,646.17,0.28423645]
[1740180817657,0.30887553,647.51,646.17,0.28423645]
[1740180817864,0.28277092,647.5,646.17,0.28423645]
[1740180818371,0.30887553,647.51,646.16,0.30952086]
[1740180818665,0.28282038,647.5,646.17,0.28426126]
[1740180820069,0.59170068,647.5,646.17,0.28426126]
[1740180820270,0.3088803,647.5,646.18,0.30951128]
[1740180822370,0.847,647.49,646.18,0.30951128]
[1740180823468,0.847,647.49,646.19,0.28414784]
[1740180823670,0.847,647.49,646.2,0.3095017]
[1740180824170,0.847,647.49,646.21,0.28414927]
[1740180824773,0.847,647.49,646.22,0.30949212]
[1740180826380,0.847,647.49,646.23,0.28415734]
[1740180826575,0.847,647.49,646.24,0.30948254]
[1740180828481,0.847,647.49,646.25,0.729]
[1740180828674,0.847,647.49,646.26,0.59362358]
[1740180828875,0.847,647.49,646.27,0.59361879]
[1740180829075,0.847,647.49,646.28,0.59361401]
[1740180829278,0.847,647.49,646.29,0.59360922]
[1740180829480,0.847,647.49,646.3,0.59360443]
[1740180829776,0.847,647.49,646.31,0.30944902]
[1740180829981,0.847,647.49,646.32,0.28413578]
[1740180830178,0.847,647.49,646.33,0.30943945]
[1740180830374,0.847,647.49,646.34,0.28413578]
[1740180830575,0.847,647.49,646.35,0.30942987]
[1740180830780,0.847,647.49,646.36,0.28413578]
[1740180830976,0.847,647.49,646.37,0.3094203]
[1740180831181,0.847,647.49,646.38,0.28413578]
[1740180831377,0.847,647.49,646.39,0.30941072]
[1740180831577,0.847,647.49,646.4,0.28413578]
[1740180831881,0.847,647.49,646.41,0.30940115]
[1740180832077,0.847,647.49,646.42,0.28413578]
[1740180832281,0.847,647.49,646.43,0.30939158]
[1740180832482,0.847,647.49,646.44,0.28413578]
[1740180832781,1.162,647.48,646.45,0.309382]
[1740180833181,1.162,647.48,646.46,0.28409659]
[1740180833380,1.162,647.48,646.46,0.59347381]
[1740180833582,1.162,647.48,646.47,0.59346902]
[1740180833883,1.162,647.48,646.48,0.59346424]
[1740180834085,1.162,647.48,646.49,0.28409659]
[1740180834385,1.162,647.48,646.5,0.30935808]
[1740180841993,1.162,647.48,646.51,0.28409132]
[1740180843487,1.162,647.48,646.5,0.30935808]
[1740180844090,1.162,647.48,646.51,0.28403671]
[1740180848392,1.162,647.48,646.5,0.30935808]
[1740180849993,1.15624612,648.4,646.5,0.30935808]
[1740180850294,0.30846108,648.38,646.5,0.30935808]
[1740180850487,2.13098635,648.37,646.5,0.30935808]
[1740180850688,0.30847536,648.35,646.5,0.30935808]
[1740180850887,2.13098635,648.34,646.5,0.30935808]
[1740180851093,0.30848963,648.32,646.5,0.30935808]
[1740180851389,2.97003489,648.31,646.5,0.30935808]
[1740180851587,0.30850391,648.29,646.5,0.30935808]
[1740180851792,2.13108785,648.28,646.5,0.30935808]
[1740180851992,0.30851818,648.26,646.5,0.30935808]
[1740180852193,2.13108785,648.25,646.5,0.30935808]
[1740180852389,0.30853246,648.23,646.5,0.30935808]
[1740180852594,2.13108785,648.22,646.5,0.30935808]
[1740180852894,0.30854674,648.2,646.5,0.30935808]
[1740180853094,2.13108785,648.19,646.5,0.30935808]
[1740180853298,0.30856102,648.17,646.5,0.30935808]
[1740180853593,2.13108785,648.16,646.51,0.76]
[1740180853793,2.45269958,648.21,646.51,0.76]
[1740180853794,0.3085753,648.14,646.51,0.76]
[1740180853995,2.13108785,648.13,646.51,0.76]
[1740180854191,0.30858959,648.11,646.51,0.76]
[1740180854387,2.97003031,648.1,646.51,0.76]
[1740180854594,0.30860387,648.08,646.51,0.76]
[1740180854789,2.13108785,648.07,646.51,0.76]
[1740180854992,0.30861816,648.05,646.51,0.76]
[1740180855189,2.1310623,648.04,646.51,0.76]
[1740180855393,0.30863244,648.02,646.51,0.76]
[1740180855589,2.1310623,648.01,646.51,0.76]
[1740180855794,0.30864673,647.99,646.51,0.76]
[1740180855995,2.1310623,647.98,646.51,0.76]
[1740180856190,0.30866102,647.96,646.51,0.76]
[1740180856396,2.97000476,647.95,646.51,0.76]
[1740180856601,2.15703034,647.94,646.51,0.76]
[1740180856792,2.43973761,647.93,646.51,0.76]
[1740180856994,2.43974238,647.92,646.51,0.76]
[1740180857198,1.38971291,647.91,646.51,0.76]
[1740180857394,2.44082818,647.9,646.51,0.76]
[1740180857590,1.69840728,647.89,646.51,0.76]
[1740180857791,1.69841205,647.88,646.51,0.76]
[1740180857991,0.59140641,647.87,646.51,0.76]
[1740180858195,0.59137792,647.86,646.51,0.76]
[1740180858397,0.59138268,647.85,646.51,0.76]
[1740180858593,0.28266925,647.84,646.51,0.76]
[1740180859297,0.30872296,647.83,646.51,0.76]
[1740180859497,0.28267076,647.82,646.51,0.76]
[1740180859694,0.30873249,647.81,646.51,0.76]
[1740180859892,0.28267076,647.8,646.51,0.76]
[1740180860499,0.775,647.79,646.51,0.76]
[1740180860695,0.28267076,647.78,646.51,0.76]
[1740180861491,0.28267538,647.77,646.51,0.76]
[1740180861693,0.775,647.79,646.51,0.76]
[1740180861893,0.28266217,647.78,646.51,0.76]
[1740180862097,0.775,647.79,646.51,0.76]
[1740180862400,0.28265222,647.78,646.51,0.76]
[1740180862701,0.775,647.79,646.52,0.30934851]
[1740180863097,0.28263094,647.78,646.52,0.30934851]
[1740180864101,0.775,647.79,646.52,0.30934851]
[1740180864297,0.28263418,647.78,646.52,0.30934851]
[1740180864796,0.28263646,647.77,646.52,0.30934851]
[1740180864999,0.28263646,647.76,646.52,0.30934851]
[1740180865203,0.775,647.79,646.52,0.30934851]
[1740180865395,0.28264473,647.78,646.52,0.30934851]
[1740180866200,0.775,647.79,646.52,0.30934851]
[1740180866401,0.28264331,647.78,646.53,0.2837736]
[1740180869805,0.28264331,647.78,646.52,0.30934851]
[1740180870204,0.28264331,647.78,646.55,1.15166835]
[1740180870599,0.30875156,647.77,646.55,1.15166835]
[1740180870804,0.28264331,647.76,646.55,1.15166835]
[1740180871001,0.30876109,647.75,646.55,1.15166835]
[1740180871207,0.28264331,647.74,646.56,0.28390442]
[1740180872703,0.28264331,647.74,646.52,0.30934851]
[1740180873010,0.28264331,647.74,646.53,0.2839351]
[1740180874708,0.28264331,647.74,646.52,0.30934851]
[1740180875305,0.28264331,647.74,646.53,1.15166835]
[1740180875911,0.28266141,647.73,646.53,1.15166835]
[1740180876106,0.28266141,647.72,646.53,1.15166835]
[1740180876313,0.28266141,647.71,646.53,1.15166835]
[1740180876505,0.28266141,647.74,646.53,1.15166835]
[1740180876705,0.59143203,647.73,646.53,1.15166835]
[1740180877017,0.5914368,647.72,646.53,1.15166835]
[1740180877224,0.59144157,647.71,646.53,1.15166835]
[1740180877416,2.13897921,647.7,646.53,1.15166835]
[1740180877617,3.29070964,647.69,646.53,1.15166835]
[1740180877813,2.4482862,647.68,646.53,1.15166835]
[1740180878018,2.98243248,647.67,646.52,0.30934851]
[1740180878313,2.13982783,647.66,646.52,0.30934851]
[1740180878516,1.39502069,647.65,646.52,0.30934851]
[1740180878716,1.39502069,647.64,646.52,0.30934851]
[1740180878920,0.84294074,647.65,646.52,0.30934851]
[1740180879224,1.70431278,647.64,646.52,0.30934851]
[1740180879418,1.39546921,647.63,646.52,0.30934851]
[1740180879719,1.39546921,647.62,646.52,0.30934851]
[1740180879919,0.28273073,647.61,646.52,0.30934851]
[1740180880113,0.28273073,647.63,646.52,0.30934851]
[1740180880317,1.39593118,647.62,646.52,0.30934851]
[1740180880516,0.28273073,647.61,646.52,0.30934851]
[1740180880817,2.23973286,647.6,646.52,0.30934851]
[1740180881018,0.28273073,647.59,646.52,0.30934851]
[1740180881217,1.12639662,647.59,646.52,0.30934851]
[1740180881422,0.28273073,647.58,646.52,0.30934851]
[1740180882019,0.28273073,647.57,646.52,0.30934851]
[1740180882215,0.30881353,647.64,646.52,0.30934851]
[1740180882419,2.14148746,647.63,646.52,0.30934851]
[1740180882623,2.14148746,647.62,646.52,0.30934851]
[1740180882923,1.39603322,647.61,646.52,0.30934851]
[1740180883121,2.23972434,647.6,646.52,0.30934851]
[1740180883323,0.28273455,647.59,646.52,0.30934851]
[1740180883922,0.28273492,647.58,646.52,0.30934851]
[1740180884123,0.28273492,647.57,646.52,0.30934851]
[1740180884318,0.28273492,647.56,646.52,0.30934851]
[1740180884516,0.28273492,647.55,646.52,0.30934851]
[1740180884826,0.28273492,647.54,646.52,0.30934851]
[1740180885018,0.28273492,647.63,646.52,0.30934851]
[1740180885324,2.45022454,647.62,646.52,0.30934851]
[1740180885526,1.85866655,647.61,646.52,0.30934851]
[1740180885823,1.39597787,647.6,646.52,0.30934851]
[1740180886024,1.39597787,647.59,646.52,0.30934851]
[1740180886222,0.28273492,647.58,646.52,0.30934851]
[1740180886422,0.28273492,647.57,646.52,0.30934851]
[1740180886921,0.28273492,647.56,646.52,0.30934851]
[1740180887121,0.28273492,647.59,646.52,0.30934851]
[1740180888823,0.28274019,647.58,646.52,0.30934851]
[1740180889015,0.28274019,647.57,646.52,0.30934851]
[1740180889923,0.28274019,647.56,646.52,0.30934851]
[1740180890225,0.28274019,647.55,646.52,0.30934851]
[1740180890423,0.28274019,647.54,646.52,0.30934851]
[1740180890624,0.28274019,647.59,646.52,0.30934851]
[1740180890816,0.28274019,647.58,646.52,0.30934851]
[1740180891019,0.28274019,647.59,646.52,0.30934851]
[1740180891220,0.28274019,647.58,646.52,0.30934851]
[1740180891420,0.28274019,647.59,646.52,0.30934851]
[1740180891625,0.28274019,647.58,646.52,0.30934851]
[1740180891819,0.28274019,647.59,646.52,0.30934851]
[1740180892021,0.28273738,647.58,646.52,0.30934851]
[1740180892222,0.28273738,647.59,646.52,0.30934851]
[1740180892524,0.28273738,647.58,646.52,0.30934851]
[1740180892725,0.28273738,647.57,646.52,0.30934851]
[1740180892927,0.28273738,647.59,646.52,0.30934851]
[1740180893225,3.00980469,647.58,646.51,0.76]
[1740180893524,2.16662312,647.57,646.51,0.76]
[1740180893721,2.16662788,647.56,646.51,0.76]
[1740180893921,1.42156818,647.55,646.51,0.76]
[1740180894225,2.16644701,647.54,646.51,0.76]
[1740180894426,2.44925234,647.53,646.51,0.76]
[1740180894624,2.44925711,647.52,646.51,0.76]
[1740180894826,2.44926188,647.51,646.51,0.76]
[1740180895129,1.70439259,647.5,646.51,0.76]
[1740180895318,0.59168563,647.49,646.51,0.76]
[1740180895533,0.5916904,647.48,646.51,0.76]
[1740180895724,0.59169518,647.47,646.51,0.76]
[1740180895917,1.43488629,647.46,646.51,0.76]
[1740180896123,0.59170472,647.45,646.51,0.76]
[1740180896430,0.59170949,647.44,646.51,0.76]
[1740180896726,0.59171426,647.43,646.51,0.76]
[1740180896927,0.59173863,647.42,646.51,0.76]
[1740180897128,0.28282016,647.41,646.51,0.76]
[1740180898426,0.30891847,647.42,646.51,0.76]
[1740180898726,0.28281656,647.41,646.51,0.76]
[1740180908439,0.30892801,647.4,646.51,0.76]
[1740180908741,0.28281656,647.39,646.51,0.76]
[1740180908940,0.59174935,647.39,646.51,0.76]
[1740180909140,0.28281656,647.38,646.51,0.76]
[1740180911040,0.59175681,647.37,646.51,0.76]
[1740180911237,0.59176158,647.36,646.51,0.76]
[1740180911435,0.28281448,647.35,646.51,0.76]
[1740180911840,0.30895665,647.34,646.19,1.15166835]
[1740180912040,0.28281448,647.33,646.19,1.15166835]
[1740180912240,0.30896619,647.32,646.19,1.15166835]
[1740180912440,0.28281448,647.31,646.19,1.15166835]
[1740180912637,0.30897574,647.3,646.19,1.15166835]
[1740180912836,0.28281448,647.29,646.19,1.15166835]
[1740180913036,0.59179499,647.29,646.2,0.999]
[1740180913239,0.28281448,647.28,646.2,0.999]
[1740180913442,0.30899006,647.27,646.2,0.999]
[1740180913738,0.28281448,647.26,646.2,0.999]
[1740180914041,0.30899006,647.27,646.2,0.999]
[1740180914237,0.28288746,647.26,646.2,0.999]
[1740180916744,0.59188229,647.26,646.2,0.999]
[1740180916941,0.28288746,647.25,646.2,0.999]
[1740180917444,0.28289323,647.24,646.2,0.999]
[1740180919841,0.30900916,647.23,646.2,0.999]
[1740180920044,0.28289323,647.22,646.2,0.999]
[1740180920248,0.30901871,647.21,646.2,0.999]
[1740180921645,0.2829091,647.2,646.2,0.999]
[1740180922241,0.28291656,647.19,646.2,0.999]
[1740180922440,0.28291656,647.18,646.2,0.999]
[1740180922643,0.30903781,647.17,646.2,0.999]
[1740180922844,0.28291656,647.16,646.2,0.999]
[1740180923040,0.30904736,647.15,646.2,0.999]
[1740180923247,0.28291656,647.14,646.2,0.999]
[1740180925242,0.30905691,647.13,646.2,0.999]
[1740180925447,0.28297494,647.12,646.2,0.999]
[1740180926241,0.30906646,647.11,646.2,0.999]
[1740180926453,0.28297494,647.1,646.2,0.999]
[1740180927447,0.30907601,647.09,646.2,0.999]
[1740180927646,0.28297494,647.08,646.2,0.999]
[1740180927848,0.30908557,647.07,646.2,0.999]
[1740180928045,0.28297494,647.06,646.2,0.999]
[1740180931750,0.28298486,647.05,646.2,0.999]
[1740180931949,0.28298486,647.04,646.2,0.999]
[1740180932154,0.28298486,647.03,646.2,0.999]
[1740180932454,0.28298486,647.02,646.2,0.999]
[1740180932651,0.28298486,647.01,646.2,0.999]
[1740180932849,0.28298486,647.0,646.2,0.999]
[1740180933148,0.59210864,646.99,646.2,0.999]
[1740180933352,0.28298486,646.98,646.2,0.999]
[1740180935053,0.30912378,646.99,646.2,0.999]
[1740180935054,0.2829871,646.97,646.2,0.999]
[1740180935252,0.2829871,646.96,646.2,0.999]
[1740180935465,0.2829871,646.95,646.2,0.999]
[1740180935649,0.2829871,646.98,646.2,0.999]
[1740180935854,0.2829871,646.97,646.2,0.999]
[1740180936049,0.2829871,646.96,646.2,0.999]
[1740180936354,0.2829871,646.95,646.2,0.999]
[1740180936552,0.2829871,646.98,646.2,0.999]
[1740180936747,0.30912378,646.99,646.2,0.999]
[1740180936748,0.2829871,646.97,646.2,0.999]
[1740180936952,0.2829871,646.96,646.2,0.999]
[1740180937252,0.2829871,646.95,646.2,0.999]
[1740180937451,0.2829871,646.98,646.2,0.999]
[1740180939856,0.30913334,646.97,646.2,0.999]
[1740180940054,0.2829871,646.96,646.2,0.999]
[1740180940250,0.30913334,646.97,646.2,0.999]
[1740180940251,0.59219115,646.95,646.2,0.999]
[1740180940451,0.59219592,646.94,646.2,0.999]
[1740180940654,0.5922007,646.93,646.2,0.999]
[1740180940855,0.28304825,646.92,646.2,0.999]
[1740180941555,0.30916201,646.91,646.2,0.999]
[1740180941750,0.28304825,646.9,646.2,0.999]
[1740180955063,0.28304825,646.9,645.52,1.15166835]
[1740180955263,0.28304825,646.9,645.55,1.15166835]
[1740180955468,0.28304825,646.9,645.56,0.28448239]
[1740180955868,0.28304825,646.9,645.56,0.59429092]
[1740180956068,0.28304825,646.9,645.57,0.28448239]
[1740180957265,0.28304825,646.9,645.64,1.15166835]
[1740180957464,0.28304825,646.9,645.65,0.28448239]
[1740180959671,0.28304825,646.9,645.75,1.15166835]
[1740180959972,0.28304825,646.9,645.76,0.28448239]
[1740180960570,0.28303684,646.89,645.75,1.15166835]
[1740180960766,0.28303684,646.9,645.76,0.28447194]
[1740180960970,0.28303684,646.89,645.75,1.15166835]
[1740180961167,0.30916201,646.91,645.75,1.15166835]
[1740180961168,0.28303684,646.88,645.75,1.15166835]
[1740180961472,0.28303684,646.87,645.75,1.15166835]
[1740180961670,0.30916201,646.91,645.75,1.15166835]
[1740180961868,0.28306143,646.9,645.71,1.15166835]
[1740180962173,0.30917157,646.89,645.71,1.15166835]
[1740180962373,0.28306143,646.88,645.72,0.2844969]
[1740180964071,0.28306143,646.88,645.73,0.2844969]
[1740180964270,0.28306143,646.88,645.69,0.2844969]
[1740180964475,0.28306143,646.88,645.7,0.2844969]
[1740180964669,0.28306143,646.88,645.69,0.2844969]
[1740180964873,0.28306143,646.88,645.7,0.2844969]
[1740180965071,0.28306143,646.88,645.71,0.2844969]
[1740180965280,0.28306143,646.88,645.72,0.2844969]
[1740180965478,0.28306143,646.88,645.72,1.15166835]
[1740180966276,0.28306143,646.88,645.73,0.28449091]
[1740180967075,0.28306143,646.88,645.72,1.15166835]
[1740180968077,0.28305416,646.87,645.74,1.15166835]
[1740180968276,0.28305416,646.88,645.74,1.15166835]
[1740180968476,0.28305416,646.87,645.74,1.15166835]
[1740180968679,0.28305416,646.88,645.74,1.15166835]
[1740180968873,0.28305416,646.87,645.74,1.15166835]
[1740180969074,0.28305416,646.86,645.74,1.15166835]
[1740180969270,0.28305416,646.88,645.75,0.28449256]
[1740180969474,0.28305416,646.87,645.75,0.28449256]
[1740180969674,0.2830515,646.86,645.76,0.28449256]
[1740180969871,0.2830515,646.85,645.77,0.28449256]
[1740180970176,0.2830515,646.84,645.74,1.15166835]
[1740180970478,0.2830515,646.83,645.75,0.28449627]
[1740180970678,0.2830515,646.82,645.8,1.15166835]
[1740180970877,0.2830515,646.88,645.8,1.15166835]
[1740180971071,0.2830515,646.87,645.8,1.15166835]
[1740180971278,0.2830515,646.88,645.8,1.15166835]
[1740180971473,0.2830515,646.87,645.8,1.15166835]
[1740180971676,0.2830515,646.86,645.8,1.15166835]
[1740180971873,0.2830515,646.85,645.8,1.15166835]
[1740180972078,0.2830515,646.84,645.8,1.15166835]
[1740180972278,0.2830515,646.83,645.8,1.15166835]
[1740180972479,0.2830515,646.82,645.8,1.15166835]
[1740180972675,0.2830515,646.81,645.8,1.15166835]
[1740180972984,0.2830515,646.8,645.8,1.15166835]
[1740180973279,0.2830515,646.79,645.8,1.15166835]
[1740180973479,0.2830515,646.78,645.83,1.15166835]
[1740180973679,0.2830515,646.77,645.83,1.15166835]
[1740180973880,0.2830515,646.88,645.83,1.15166835]
[1740180974075,0.2830515,646.87,645.83,1.15166835]
[1740180974276,0.2830515,646.88,645.83,1.15166835]
[1740180974483,0.2830515,646.87,645.83,1.15166835]
[1740180974680,0.2830515,646.88,645.83,1.15166835]
[1740180974881,0.2830515,646.87,645.83,1.15166835]
[1740180975082,0.2830515,646.88,645.83,1.15166835]
[1740180975274,0.2830515,646.87,645.83,1.15166835]
[1740180975482,0.2830515,646.86,645.8,1.15166835]
[1740180975681,0.2830515,646.85,645.8,1.15166835]
[1740180975876,0.30917157,646.89,645.8,1.15166835]
[1740180976078,0.28302302,646.88,645.8,1.15166835]
[1740180976884,0.28302302,646.88,645.84,1.15166835]
[1740180979084,0.28301703,646.87,645.85,1.15166835]
[1740180979286,0.28301703,646.86,645.85,1.15166835]
[1740180979477,0.28301703,646.88,645.85,1.15166835]
[1740180979678,0.28301703,646.87,645.85,1.15166835]
[1740180979881,0.28301703,646.86,645.85,1.15166835]
[1740180980181,0.28301703,646.85,645.85,1.15166835]
[1740180980383,0.28301703,646.88,645.85,1.15166835]
[1740180980580,0.28301703,646.87,645.85,1.15166835]
[1740180980784,0.28301703,646.86,645.85,1.15166835]
[1740180981084,0.28301703,646.85,645.84,1.15166835]
[1740180981281,0.28301703,646.84,645.84,1.15166835]
[1740180981482,0.28301703,646.83,645.84,1.15166835]
[1740180981785,0.28301703,646.82,645.84,1.15166835]
[1740180981984,0.30917157,646.89,645.84,1.15166835]
[1740180981985,0.28301703,646.88,645.84,1.15166835]
[1740180982186,0.28301703,646.87,645.84,1.15166835]